fUSD/lending_fUSD_20250216
["ID","MTS","AMOUNT","RATE_DAILY","PERIOD"]
[353303532,1739743869727,-1016.8,0.00011862,2]
[353303533,1739743869736,-716.65,0.00011862,2]
[353303534,1739743869745,-500.0,0.00011863,2]
[353303535,1739743869753,-500.0,0.00011863,2]
[353303536,1739743869763,-500.0,0.00011863,2]
[353303537,1739743869772,-500.0,0.00011863,2]
[353303538,1739743869782,-500.0,0.00011863,2]
[353303539,1739743869791,-714.06,0.00011863,2]
[353303540,1739743869801,-500.0,0.00011863,2]
[353303541,1739743869809,-500.0,0.00011863,2]
[353303542,1739743869819,-500.0,0.00011863,2]
[353303543,1739743869829,-728.13,0.00011863,2]
[353303544,1739743869840,-538.64,0.00011863,2]
[353303545,1739743869850,-583.4,0.00011863,2]
[353303546,1739743869860,-500.0,0.00011863,2]
[353303547,1739743869870,-500.0,0.00011863,2]
[353303548,1739743869880,-500.0,0.00011863,2]
[353303549,1739743869890,-500.0,0.00011863,2]
[353303550,1739743869900,-500.0,0.00011863,2]
[353303551,1739743869910,-594.77,0.00011863,2]
[353303552,1739743869920,-500.0,0.00011863,2]
[353303553,1739743869930,-500.0,0.00011863,2]
[353303554,1739743869940,-569.07,0.00011863,2]
[353303555,1739743869950,-639.31,0.00011863,2]
[353303556,1739743869960,-500.0,0.00011863,2]
[353303557,1739743869969,-500.0,0.00011863,2]
[353303558,1739743869979,-500.0,0.00011863,2]
[353303559,1739743869989,-500.0,0.00011863,2]
[353303560,1739743869998,-500.0,0.00011863,2]
[353303561,1739743870008,-500.0,0.00011863,2]
[353303562,1739743870018,-746.52,0.00011863,2]
[353303563,1739743870028,-620.87,0.00011863,2]
[353303564,1739743870038,-527.75,0.00011863,2]
[353303565,1739743870048,-703.13,0.00011863,2]
[353303566,1739743870058,-758.03,0.00011863,2]
[353303567,1739743870068,-500.0,0.00011863,2]
[353303568,1739743870079,-195.26,0.00011863,2]
[353303569,1739743870089,-500.0,0.00011863,2]
[353303570,1739743870099,-500.0,0.00011863,2]
[353303571,1739743870108,-500.0,0.00011863,2]
[353303572,1739743870118,-523.85,0.00011863,2]
[353303573,1739743870127,-500.0,0.00011863,2]
[353303574,1739743870137,-500.0,0.00011863,2]
[353303575,1739743870147,-536.09,0.00011863,2]
[353303576,1739743870158,-500.0,0.00011863,2]
[353303577,1739743870168,-500.0,0.00011863,2]
[353303578,1739743870178,-640.13,0.00011863,2]
[353303579,1739743870188,-828.92,0.00011863,2]
[353303580,1739743870198,-657.03,0.00011863,2]
[353303581,1739743870207,-1040.32,0.00011863,2]
[353303582,1739743870217,-500.0,0.00011863,2]
[353303583,1739743870227,-881.8,0.00011863,2]
[353303584,1739743870237,-500.0,0.00011863,2]
[353303585,1739743870246,-1205.89569562,0.00011863,2]
[353303586,1739743870261,-173.08430438,0.00011863,2]
[353303587,1739743870272,-537.54,0.00011863,2]
[353303588,1739743870281,-500.0,0.00011863,2]
[353303589,1739743870292,-441.87569562,0.00011863,2]
[353303590,1739743870304,-426.17584424,0.00011863,2]
[353303591,1739743870316,-763.95846014,0.00011863,2]
[353303592,1739743870326,-0.09902351,0.00011863,2]
[353303593,1739743870339,-740.44097649,0.00011863,2]
[353303594,1739743870349,-409.60496002,0.00011863,2]
[353303595,1739743870362,-443.62503998,0.00011863,2]
[353303596,1739743870372,-543.84,0.00011863,2]
[353303597,1739743870381,-500.0,0.00011863,2]
[353303598,1739743870392,-417.38545177,0.00011863,2]
[353303599,1739743870404,-201.12454823,0.00011863,2]
[353303600,1739743870414,-599.54,0.00011863,2]
[353303601,1739743870424,-284.4238748,0.00011863,2]
[353303602,1739743870436,-215.5761252,0.00011863,2]
[353303603,1739743870446,-271.99948104,0.00011863,2]
[353303604,1739743870466,-832.87,0.00011368,2]
[353303605,1739743870477,-519.59051896,0.00011863,2]
[353303606,1739743870487,-858.87,0.00011863,2]
[353303607,1739743870496,-101.16498124,0.00011863,2]
[353303608,1739743870508,-1064.69501876,0.00011863,2]
[353303609,1739743870518,-500.0,0.00011863,2]
[353303610,1739743870529,-717.35,0.00011863,2]
[353303611,1739743870543,-330.0,0.00011863,2]
[353303612,1739743870553,-500.0,0.00011863,2]
[353303613,1739743870563,-360.47532152,0.00011863,2]
[353303614,1739743870576,-447.36467848,0.00011863,2]
[353303615,1739743870586,-500.0,0.00011863,2]
[353303616,1739743870595,-894.1,0.00011863,2]
[353303617,1739743870606,-1443.39,0.00011863,2]
[353303618,1739743870616,-652.28,0.00011863,2]
[353303619,1739743870627,-573.79,0.00011863,2]
[353303620,1739743870636,-500.0,0.00011863,2]
[353303621,1739743870646,-1116.66,0.00011863,2]
[353303622,1739743870655,-500.0,0.00011863,2]
[353303623,1739743870665,-500.0,0.00011863,2]
[353303624,1739743870676,-500.0,0.00011863,2]
[353303625,1739743870686,-628.06,0.00011863,2]
[353303626,1739743870697,-500.0,0.00011863,2]
[353303627,1739743870707,-151.0,0.00011884,2]
[353303628,1739743870717,-986.58,0.00011884,2]
[353303629,1739743870727,-877.54,0.00011884,2]
[353303630,1739743870736,-986.58,0.00011884,2]
[353303631,1739743870745,-986.58,0.00011884,2]
[353303632,1739743870756,-984.13,0.00011884,2]
[353303633,1739743870766,-3109.81673496,0.00011895,2]
[353303634,1739743870776,-500.0,0.00011943,2]
[353303635,1739743870785,-500.0,0.00011943,2]
[353303636,1739743870795,-500.0,0.00011943,2]
[353303637,1739743870804,-500.0,0.00011943,2]
[353303638,1739743870813,-500.0,0.00011943,2]
[353303639,1739743870823,-500.0,0.00011943,2]
[353303640,1739743870832,-500.0,0.00011943,2]
[353303641,1739743870843,-500.0,0.00011943,2]
[353303642,1739743870854,-183.92,0.00011943,2]
[353303643,1739743870864,-500.0,0.00011943,2]
[353303644,1739743870876,-500.0,0.00011943,2]
[353303645,1739743870886,-380.34,0.00011943,2]
[353303646,1739743870896,-519.55,0.00011943,2]
[353303647,1739743870906,-500.0,0.00011943,2]
[353303648,1739743870915,-545.36,0.00011943,2]
[353303649,1739743870925,-537.82,0.00011943,2]
[353303650,1739743870935,-500.0,0.00011943,2]
[353303651,1739743870944,-428.619564,0.00011943,2]
[353303652,1739743870954,-500.0,0.00011943,2]
[353303653,1739743870965,-405.49182256,0.00011943,2]
[353303654,1739743870978,-94.50817744,0.00011943,2]
[353303655,1739743870988,-605.506852,0.00011943,2]
[353303656,1739743870999,-500.0,0.00011943,2]
[353303657,1739743871009,-885.61,0.00011943,2]
[353303658,1739743871019,-500.0,0.00011943,2]
[353303659,1739743871029,-611.27,0.00011943,2]
[353303660,1739743871039,-551.58,0.00011943,2]
[353303661,1739743871049,-660.26,0.00011943,2]
[353303662,1739743871059,-593.26,0.00011943,2]
[353303663,1739743871069,-500.0,0.00011943,2]
[353303664,1739743871079,-553.94,0.00011943,2]
[353303665,1739743871089,-565.94,0.00011943,2]
[353303666,1739743871099,-500.0,0.00011943,2]
[353303667,1739743871108,-673.88,0.00011943,2]
[353303668,1739743871118,-776.79,0.00011943,2]
[353303669,1739743871128,-500.0,0.00011943,2]
[353303670,1739743871138,-500.0,0.00011943,2]
[353303671,1739743871147,-500.0,0.00011943,2]
[353303672,1739743871157,-603.97,0.00011943,2]
[353303673,1739743871168,-662.07,0.00011943,2]
[353303674,1739743871178,-500.0,0.00011943,2]
[353303675,1739743871188,-500.0,0.00011943,2]
[353303676,1739743871198,-584.92,0.00011943,2]
[353303677,1739743871208,-319.76,0.00011943,2]
[353303678,1739743871218,-500.0,0.00011943,2]
[353303679,1739743871228,-500.0,0.00011943,2]
[353303680,1739743871238,-500.0,0.00011943,2]
[353303681,1739743871248,-2109.33,0.00011943,2]
[353303682,1739743871258,-659.1,0.00011943,2]
[353303683,1739743871268,-500.0,0.00011943,2]
[353303684,1739743871277,-796.43,0.00011943,2]
[353303685,1739743871287,-1070.81,0.00011943,2]
[353303686,1739743871297,-676.0,0.00011943,2]
[353303687,1739743871307,-1331.97,0.00011943,2]
[353303688,1739743871317,-955.73,0.00011943,2]
[353303689,1739743871326,-500.0,0.00011943,2]
[353303690,1739743871336,-1388.19,0.00011943,2]
[353303691,1739743871346,-1981.7307406,0.00011943,2]
[353303692,1739743871358,-907.50359845,0.00011943,2]
[353303693,1739743871370,-637.63566095,0.00011943,2]
[353303694,1739743871380,-793.3,0.00011943,2]
[353303695,1739743871389,-839.11,0.00011943,2]
[353303696,1739743871399,-632.97,0.00011943,2]
[353303697,1739743871409,-116.98433905,0.00011943,2]
[353303698,1739743871421,-811.42566095,0.00011943,2]
[353303699,1739743871431,-238.86070201,0.00011943,2]
[353303700,1739743871447,-708.42929799,0.00011943,2]
[353303701,1739743871456,-604.69,0.00011943,2]
[353303702,1739743871467,-247.63183582,0.00011943,2]
[353303703,1739743871482,-757.02816418,0.00011943,2]
[353303704,1739743871492,-930.09,0.00011943,2]
[353303705,1739743871502,-1090.64,0.00011943,2]
[353303706,1739743871512,-506.83,0.00011943,2]
[353303707,1739743871522,-500.0,0.00011943,2]
[353303708,1739743871535,-552.02,0.00011943,2]
[353303709,1739743871545,-77.03575081,0.00011943,2]
[353303710,1739743871760,-832.87,0.0001145,2]
[353303711,1739743871770,-327.13,0.00011532,2]
[353303712,1739743872059,-505.74,0.00011532,2]
[353303713,1739743872069,-832.87,0.00011615,2]
[353303714,1739743872080,-832.87,0.00011697,2]
[353303715,1739743872291,-832.87,0.00011779,2]
[353303716,1739743872307,-832.87,0.00011861,2]
[353303717,1739743872316,-3003.87424919,0.00011943,2]
[353303718,1739743872327,-557.45,0.00011943,2]
[353303719,1739743872336,-609.6,0.00011943,2]
[353303720,1739743872346,-836.96,0.00011943,2]
[353303721,1739743872355,-500.0,0.00011943,2]
[353303722,1739743872365,-788.37,0.00011943,2]
[353303723,1739743872374,-500.0,0.00011943,2]
[353303724,1739743872383,-535.91,0.00011943,2]
[353303725,1739743872393,-1029.76,0.00011943,2]
[353303726,1739743872402,-757.55,0.00011943,2]
[353303727,1739743872412,-1207.77,0.00011943,2]
[353303728,1739743872421,-993.67,0.00011943,2]
[353303729,1739743872431,-500.0,0.00011943,2]
[353303730,1739743872440,-883.43,0.00011943,2]
[353303731,1739743872450,-1193.44,0.00011943,2]
[353303732,1739743872460,-1120.23,0.00011943,2]
[353303733,1739743872470,-1029.53,0.00011943,2]
[353303734,1739743872479,-500.0,0.00011943,2]
[353303735,1739743872489,-745.24,0.00011943,2]
[353303736,1739743872498,-2299.91,0.00011943,2]
[353303737,1739743872507,-500.0,0.00011943,2]
[353303738,1739743872517,-1170.51,0.00011943,2]
[353303739,1739743872527,-500.0,0.00011943,2]
[353303740,1739743872539,-500.0,0.00011943,2]
[353303741,1739743872550,-1124.91,0.00011943,2]
[353303742,1739743872559,-500.0,0.00011943,2]
[353303743,1739743872569,-500.0,0.00011943,2]
[353303744,1739743872580,-632.96,0.00011943,2]
[353303745,1739743872590,-1572.85,0.00011943,2]
[353303746,1739743872600,-1256.66,0.00011943,2]
[353303747,1739743872611,-500.0,0.00011943,2]
[353303748,1739743872620,-500.0,0.00011943,2]
[353303749,1739743872630,-500.0,0.00011943,2]
[353303750,1739743872639,-526.13,0.00011943,2]
[353303751,1739743872648,-1051.04,0.00011943,2]
[353303752,1739743872658,-916.19,0.00011943,2]
[353303753,1739743872667,-1373.28,0.00011943,2]
[353303754,1739743872677,-670.74,0.00011943,2]
[353303755,1739743872686,-3030.67,0.00011943,2]
[353303756,1739743872695,-558.69,0.00011943,2]
[353303757,1739743872705,-1287.49,0.00011943,2]
[353303758,1739743872716,-2285.4,0.00011943,2]
[353303759,1739743872726,-962.38,0.00011943,2]
[353303760,1739743872735,-919.68,0.00011943,2]
[353303761,1739743872744,-500.0,0.00011943,2]
[353303762,1739743872754,-1272.04,0.00011943,2]
[353303763,1739743872763,-1620.04,0.00011943,2]
[353303764,1739743872773,-626.14,0.00011943,2]
[353303765,1739743872782,-832.87,0.00011943,2]
[353303766,1739743872792,-1036.75,0.00011944,2]
[353303767,1739743872802,-1298.67,0.00011944,2]
[353303768,1739743872812,-1000.0,0.00011944,2]
[353303769,1739743872830,-1172.76,0.00011944,2]
[353303770,1739743872842,-500.0,0.00011944,2]
[353303771,1739743872853,-1016.8,0.00011944,2]
[353303772,1739743872863,-716.65,0.00011944,2]
[353303773,1739743872874,-2447.18,0.00011944,2]
[353303774,1739743872885,-500.0,0.00011945,2]
[353303775,1739743872895,-500.0,0.00011945,2]
[353303776,1739743872906,-382.2,0.00011945,2]
[353303777,1739743872915,-500.0,0.00011945,2]
[353303778,1739743872925,-714.06,0.00011945,2]
[353303779,1739743872935,-500.0,0.00011945,2]
[353303780,1739743872946,-500.0,0.00011945,2]
[353303781,1739743872959,-500.0,0.00011945,2]
[353303782,1739743872969,-728.13,0.00011945,2]
[353303783,1739743872978,-583.4,0.00011945,2]
[353303784,1739743872988,-500.0,0.00011945,2]
[353303785,1739743872997,-500.0,0.00011945,2]
[353303786,1739743873007,-500.0,0.00011945,2]
[353303787,1739743873018,-500.0,0.00011945,2]
[353303788,1739743873028,-500.0,0.00011945,2]
[353303789,1739743873038,-500.0,0.00011945,2]
[353303790,1739743873048,-500.0,0.00011945,2]
[353303791,1739743873057,-569.07,0.00011945,2]
[353303792,1739743873067,-639.31,0.00011945,2]
[353303793,1739743873077,-500.0,0.00011945,2]
[353303794,1739743873086,-500.0,0.00011945,2]
[353303795,1739743873096,-500.0,0.00011945,2]
[353303796,1739743873105,-500.0,0.00011945,2]
[353303797,1739743873115,-500.0,0.00011945,2]
[353303798,1739743873125,-350.92,0.00011945,2]
[353303799,1739743873135,-746.52,0.00011945,2]
[353303800,1739743873144,-620.87,0.00011945,2]
[353303801,1739743873153,-527.75,0.00011945,2]
[353303802,1739743873163,-703.13,0.00011945,2]
[353303803,1739743873173,-758.03,0.00011945,2]
[353303804,1739743873182,-500.0,0.00011945,2]
[353303805,1739743873192,-500.0,0.00011945,2]
[353303806,1739743873202,-500.0,0.00011945,2]
[353303807,1739743873211,-500.0,0.00011945,2]
[353303808,1739743873220,-523.85,0.00011945,2]
[353303809,1739743873230,-500.0,0.00011945,2]
[353303810,1739743873240,-500.0,0.00011945,2]
[353303811,1739743873250,-536.09,0.00011945,2]
[353303812,1739743873259,-500.0,0.00011945,2]
[353303813,1739743873269,-500.0,0.00011945,2]
[353303814,1739743873279,-640.13,0.00011945,2]
[353303815,1739743873288,-828.92,0.00011945,2]
[353303816,1739743873298,-657.03,0.00011945,2]
[353303817,1739743873307,-1040.32,0.00011945,2]
[353303818,1739743873317,-500.0,0.00011945,2]
[353303819,1739743873326,-881.8,0.00011945,2]
[353303820,1739743873335,-500.0,0.00011945,2]
[353303821,1739743873345,-1378.98,0.00011945,2]
[353303822,1739743873355,-537.54,0.00011945,2]
[353303823,1739743873365,-500.0,0.00011945,2]
[353303824,1739743873375,-1632.01,0.00011945,2]
[353303825,1739743873384,-740.54,0.00011945,2]
[353303826,1739743873394,-853.23,0.00011945,2]
[353303827,1739743873404,-543.84,0.00011945,2]
[353303828,1739743873413,-500.0,0.00011945,2]
[353303829,1739743873422,-618.51,0.00011945,2]
[353303830,1739743873432,-599.54,0.00011945,2]
[353303831,1739743873442,-500.0,0.00011945,2]
[353303832,1739743873451,-791.59,0.00011945,2]
[353303833,1739743873461,-858.87,0.00011945,2]
[353303834,1739743873471,-1165.86,0.00011945,2]
[353303835,1739743873480,-297.07,0.00011945,2]
[353303836,1739743873490,-717.35,0.00011945,2]
[353303837,1739743873499,-500.0,0.00011945,2]
[353303838,1739743873508,-807.84,0.00011945,2]
[353303839,1739743873518,-500.0,0.00011945,2]
[353303840,1739743873527,-894.1,0.00011945,2]
[353303841,1739743873541,-1443.39,0.00011945,2]
[353303842,1739743873550,-652.28,0.00011945,2]
[353303843,1739743873560,-573.79,0.00011945,2]
[353303844,1739743873570,-500.0,0.00011945,2]
[353303845,1739743873581,-1116.66,0.00011945,2]
[353303846,1739743873590,-500.0,0.00011945,2]
[353303847,1739743873600,-500.0,0.00011945,2]
[353303848,1739743873611,-500.0,0.00011945,2]
[353303849,1739743873621,-628.06,0.00011945,2]
[353303850,1739743873631,-3109.81673496,0.0001196,2]
[353303851,1739743873641,-600.0,0.00012,2]
[353303852,1739743873651,-3109.81673496,0.00012025,2]
[353303853,1739743873660,-500.0,0.00012026,2]
[353303854,1739743873670,-500.0,0.00012026,2]
[353303855,1739743873679,-500.0,0.00012026,2]
[353303856,1739743873688,-500.0,0.00012026,2]
[353303857,1739743873698,-500.0,0.00012026,2]
[353303858,1739743873708,-500.0,0.00012026,2]
[353303859,1739743873719,-500.0,0.00012026,2]
[353303860,1739743873729,-500.0,0.00012026,2]
[353303861,1739743873738,-500.0,0.00012026,2]
[353303862,1739743873748,-500.0,0.00012026,2]
[353303863,1739743873758,-156.075971,0.00012026,2]
[353303864,1739743873768,-519.55,0.00012026,2]
[353303865,1739743873777,-500.0,0.00012026,2]
[353303866,1739743873787,-545.36,0.00012026,2]
[353303867,1739743873796,-537.82,0.00012026,2]
[353303868,1739743873805,-1654.16,0.00012026,2]
[353303869,1739743873815,-500.0,0.00012026,2]
[353303870,1739743873825,-428.619564,0.00012026,2]
[353303871,1739743873835,-500.0,0.00012026,2]
[353303872,1739743873844,-500.0,0.00012026,2]
[353303873,1739743873854,-605.506852,0.00012026,2]
[353303874,1739743873865,-500.0,0.00012026,2]
[353303875,1739743873875,-885.61,0.00012026,2]
[353303876,1739743873884,-381.11,0.00012026,2]
[353303877,1739743873894,-611.27,0.00012026,2]
[353303878,1739743873904,-551.58,0.00012026,2]
[353303879,1739743873913,-660.26,0.00012026,2]
[353303880,1739743873923,-593.26,0.00012026,2]
[353303881,1739743873932,-500.0,0.00012026,2]
[353303882,1739743873943,-553.94,0.00012026,2]
[353303883,1739743873953,-565.94,0.00012026,2]
[353303884,1739743873962,-500.0,0.00012026,2]
[353303885,1739743873972,-673.88,0.00012026,2]
[353303886,1739743873982,-776.79,0.00012026,2]
[353303887,1739743873992,-500.0,0.00012026,2]
[353303888,1739743874002,-500.0,0.00012026,2]
[353303889,1739743874011,-500.0,0.00012026,2]
[353303890,1739743874021,-603.97,0.00012026,2]
[353303891,1739743874030,-662.07,0.00012026,2]
[353303892,1739743874039,-500.0,0.00012026,2]
[353303893,1739743874049,-500.0,0.00012026,2]
[353303894,1739743874058,-584.92,0.00012026,2]
[353303895,1739743874068,-500.0,0.00012026,2]
[353303896,1739743874078,-500.0,0.00012026,2]
[353303897,1739743874087,-500.0,0.00012026,2]
[353303898,1739743874097,-2109.33,0.00012026,2]
[353303899,1739743874107,-796.43,0.00012026,2]
[353303900,1739743874116,-500.0,0.00012026,2]
[353303901,1739743874126,-1070.81,0.00012026,2]
[353303902,1739743874136,-676.0,0.00012026,2]
[353303903,1739743874145,-1331.97,0.00012026,2]
[353303904,1739743874155,-955.73,0.00012026,2]
[353303905,1739743874164,-500.0,0.00012026,2]
[353303906,1739743874174,-1388.19,0.00012026,2]
[353303907,1739743874183,-3526.87,0.00012026,2]
[353303908,1739743874193,-793.3,0.00012026,2]
[353303909,1739743874203,-839.11,0.00012026,2]
[353303910,1739743874212,-632.97,0.00012026,2]
[353303911,1739743874221,-928.41,0.00012026,2]
[353303912,1739743874231,-947.29,0.00012026,2]
[353303913,1739743874240,-604.69,0.00012026,2]
[353303914,1739743874249,-1004.66,0.00012026,2]
[353303915,1739743874258,-930.09,0.00012026,2]
[353303916,1739743874268,-1090.64,0.00012026,2]
[353303917,1739743874279,-506.83,0.00012026,2]
[353303918,1739743874289,-500.0,0.00012026,2]
[353303919,1739743874299,-552.02,0.00012026,2]
[353303920,1739743874309,-3080.91,0.00012026,2]
[353303921,1739743874318,-557.45,0.00012026,2]
[353303922,1739743874328,-609.6,0.00012026,2]
[353303923,1739743874337,-836.96,0.00012026,2]
[353303924,1739743874346,-500.0,0.00012026,2]
[353303925,1739743874356,-788.37,0.00012026,2]
[353303926,1739743874365,-500.0,0.00012026,2]
[353303927,1739743874374,-535.91,0.00012026,2]
[353303928,1739743874384,-1029.76,0.00012026,2]
[353303929,1739743874393,-757.55,0.00012026,2]
[353303930,1739743874402,-1207.77,0.00012026,2]
[353303931,1739743874412,-993.67,0.00012026,2]
[353303932,1739743874421,-500.0,0.00012026,2]
[353303933,1739743874430,-883.43,0.00012026,2]
[353303934,1739743874439,-1193.44,0.00012026,2]
[353303935,1739743874448,-1120.23,0.00012026,2]
[353303936,1739743874458,-1029.53,0.00012026,2]
[353303937,1739743874467,-500.0,0.00012026,2]
[353303938,1739743874477,-745.24,0.00012026,2]
[353303939,1739743874486,-2299.91,0.00012026,2]
[353303940,1739743874496,-500.0,0.00012026,2]
[353303941,1739743874505,-1170.51,0.00012026,2]
[353303942,1739743874515,-500.0,0.00012026,2]
[353303943,1739743874524,-500.0,0.00012026,2]
[353303944,1739743874535,-1124.91,0.00012026,2]
[353303945,1739743874545,-500.0,0.00012026,2]
[353303946,1739743874555,-500.0,0.00012026,2]
[353303947,1739743874564,-632.96,0.00012026,2]
[353303948,1739743874574,-1572.85,0.00012026,2]
[353303949,1739743874583,-1256.66,0.00012026,2]
[353303950,1739743874594,-500.0,0.00012026,2]
[353303951,1739743874603,-500.0,0.00012026,2]
[353303952,1739743874613,-500.0,0.00012026,2]
[353303953,1739743874623,-526.13,0.00012026,2]
[353303954,1739743874633,-1051.04,0.00012026,2]
[353303955,1739743874642,-916.19,0.00012026,2]
[353303956,1739743874720,-1373.28,0.00012026,2]
[353303957,1739743874731,-670.74,0.00012026,2]
[353303958,1739743874741,-3030.67,0.00012026,2]
[353303959,1739743874750,-558.69,0.00012026,2]
[353303960,1739743874759,-1287.49,0.00012026,2]
[353303961,1739743874769,-2285.4,0.00012026,2]
[353303962,1739743874778,-962.38,0.00012026,2]
[353303963,1739743874797,-919.68,0.00012026,2]
[353303964,1739743874806,-500.0,0.00012026,2]
[353303965,1739743874817,-1272.04,0.00012026,2]
[353303966,1739743874826,-1620.04,0.00012026,2]
[353303967,1739743874836,-626.14,0.00012026,2]
[353303968,1739743874845,-832.87,0.00012026,2]
[353303969,1739743874854,-500.0,0.00012027,2]
[353303970,1739743874863,-500.0,0.00012027,2]
[353303971,1739743874872,-500.0,0.00012027,2]
[353303972,1739743874881,-714.06,0.00012027,2]
[353303973,1739743874891,-500.0,0.00012027,2]
[353303974,1739743874901,-500.0,0.00012027,2]
[353303975,1739743874911,-500.0,0.00012027,2]
[353303976,1739743874920,-728.13,0.00012027,2]
[353303977,1739743874930,-583.4,0.00012027,2]
[353303978,1739743874939,-500.0,0.00012027,2]
[353303979,1739743874948,-500.0,0.00012027,2]
[353303980,1739743874958,-500.0,0.00012027,2]
[353303981,1739743874968,-500.0,0.00012027,2]
[353303982,1739743874977,-500.0,0.00012027,2]
[353303983,1739743874987,-500.0,0.00012027,2]
[353303984,1739743874996,-500.0,0.00012027,2]
[353303985,1739743875006,-569.07,0.00012027,2]
[353303986,1739743875015,-639.31,0.00012027,2]
[353303987,1739743875025,-500.0,0.00012027,2]
[353303988,1739743875034,-457.7,0.00012027,2]
[353303989,1739743875043,-500.0,0.00012027,2]
[353303990,1739743875052,-500.0,0.00012027,2]
[353303991,1739743875062,-500.0,0.00012027,2]
[353303992,1739743875071,-746.52,0.00012027,2]
[353303993,1739743875080,-620.87,0.00012027,2]
[353303994,1739743875089,-527.75,0.00012027,2]
[353303995,1739743875098,-703.13,0.00012027,2]
[353303996,1739743875107,-758.03,0.00012027,2]
[353303997,1739743875116,-173.95,0.00012027,2]
[353303998,1739743875125,-500.0,0.00012027,2]
[353303999,1739743875135,-500.0,0.00012027,2]
[353304000,1739743875144,-500.0,0.00012027,2]
[353304001,1739743875154,-523.85,0.00012027,2]
[353304002,1739743875163,-500.0,0.00012027,2]
[353304003,1739743875172,-500.0,0.00012027,2]
[353304004,1739743875181,-536.09,0.00012027,2]
[353304005,1739743875190,-500.0,0.00012027,2]
[353304006,1739743875199,-640.13,0.00012027,2]
[353304007,1739743875209,-828.92,0.00012027,2]
[353304008,1739743875218,-1036.75,0.00012027,2]
[353304009,1739743875227,-657.03,0.00012027,2]
[353304010,1739743875236,-1298.67,0.00012027,2]
[353304011,1739743875245,-1000.0,0.00012027,2]
[353304012,1739743875255,-1040.32,0.00012027,2]
[353304013,1739743875265,-1172.76,0.00012027,2]
[353304014,1739743875274,-500.0,0.00012027,2]
[353304015,1739743875283,-881.8,0.00012027,2]
[353304016,1739743875292,-500.0,0.00012027,2]
[353304017,1739743875302,-500.0,0.00012027,2]
[353304018,1739743875311,-1378.98,0.00012027,2]
[353304019,1739743875320,-537.54,0.00012027,2]
[353304020,1739743875330,-1016.8,0.00012027,2]
[353304021,1739743875339,-500.0,0.00012027,2]
[353304022,1739743875348,-1632.01,0.00012027,2]
[353304023,1739743875357,-740.54,0.00012027,2]
[353304024,1739743875367,-853.23,0.00012027,2]
[353304025,1739743875376,-543.84,0.00012027,2]
[353304026,1739743875385,-716.65,0.00012027,2]
[353304027,1739743875393,-500.0,0.00012027,2]
[353304028,1739743875403,-618.51,0.00012027,2]
[353304029,1739743875412,-599.54,0.00012027,2]
[353304030,1739743875422,-500.0,0.00012027,2]
[353304031,1739743875431,-791.59,0.00012027,2]